bitfinex/quotes_ETHUSD_20230118
["timestamp","ask_amount","ask_price","bid_price","bid_amount"]
[1674038270678,14.53345857,1575.5,1575.4,0.24950547]
[1674038270939,12.83779309,1575.5,1575.4,0.24950547]
[1674038271784,13.50070905,1575.5,1575.4,0.24950547]
[1674038271995,12.83779309,1575.5,1575.4,0.24950547]
[1674038272228,13.50070905,1575.5,1575.4,0.24950547]
[1674038272521,12.83779309,1575.5,1575.4,0.24950547]
[1674038273323,14.53338252,1575.5,1575.4,0.24950547]
[1674038273954,13.50070905,1575.5,1575.4,0.24950547]
[1674038274168,7.15351905,1575.5,1575.4,0.24950547]
[1674038274376,0.14341309,1575.5,1575.4,0.24950547]
[1674038274645,0.07979693,1575.5,1575.4,0.24950547]
[1674038275582,0.07979693,1575.5,1575.4,0.39496317]
[1674038275778,0.07979693,1575.5,1575.4,0.24950547]
[1674038277210,0.07979693,1575.5,1575.4,0.31385044]
[1674038278951,0.07979693,1575.5,1575.4,0.24950547]
[1674038279666,6.42698693,1575.5,1575.4,0.24950547]
[1674038279875,0.14341309,1575.5,1575.4,0.24950547]
[1674038280202,0.07979693,1575.5,1575.4,0.43906317]
[1674038280452,12.77417693,1575.5,1575.4,0.24950547]
[1674038280592,12.83779309,1575.5,1575.4,0.24950547]
[1674038280806,0.14341309,1575.5,1575.4,0.24950547]
[1674038281052,0.07979693,1575.5,1575.4,0.24950547]
[1674038282405,0.07979693,1575.5,1575.4,12.81934522]
[1674038282609,0.002,1575.6,1575.5,1.0]
[1674038282787,0.96425439,1575.9,1575.5,21.01018891]
[1674038282991,0.96425439,1575.9,1575.7,1.441]
[1674038282992,0.30133843,1575.9,1575.7,1.441]
[1674038283201,0.30133843,1575.9,1575.7,10.90391407]
[1674038283474,0.30133843,1575.9,1575.8,1.09039141]
[1674038283991,0.30133843,1575.9,1575.7,1.507]
[1674038283992,6.64691843,1575.9,1575.7,1.507]
[1674038284180,6.71291843,1575.9,1575.6,4.445]
[1674038284354,6.71291843,1575.9,1575.6,1.445]
[1674038284560,7.37583439,1575.9,1575.6,1.445]
[1674038285144,13.72141439,1575.9,1575.5,12.723]
[1674038285364,13.72141439,1575.9,1575.6,1.2723]
[1674038286097,14.71576182,1575.9,1575.6,1.2723]
[1674038286409,21.06134182,1575.9,1575.5,8.279]
[1674038286561,14.38544674,1575.8,1575.5,8.279]
[1674038286770,13.42125596,1575.8,1575.5,8.279]
[1674038287755,7.07494596,1575.8,1575.5,8.279]
[1674038288067,0.066,1575.8,1575.5,19.18380407]
[1674038288280,0.96425439,1575.9,1575.6,1.91838041]
[1674038289411,0.30333843,1575.9,1575.6,1.91838041]
[1674038289622,0.30133843,1575.9,1575.6,1.91838041]
[1674038290999,0.30133843,1575.9,1575.6,6.48300448]
[1674038291199,0.30133843,1575.9,1575.7,0.64830045]
[1674038291618,0.30133843,1575.9,1575.7,1.64830045]
[1674038292088,0.30133843,1575.9,1575.7,0.64830045]
[1674038292314,0.30133843,1575.9,1575.7,6.99465045]
[1674038292494,0.30133843,1575.9,1575.7,7.06065045]
[1674038292684,0.30133843,1575.9,1575.8,0.70606505]
[1674038293103,0.30133843,1575.9,1575.7,0.64830045]
[1674038299868,0.30133843,1575.9,1575.7,6.99453045]
[1674038300091,0.30133843,1575.9,1575.8,3.11662407]
[1674038300274,0.30133843,1575.9,1575.8,10.90660407]
[1674038300491,0.30133843,1575.9,1575.8,10.97260407]
[1674038300746,0.30133843,1575.9,1575.8,15.35500649]
[1674038303815,0.29836976,1575.9,1575.8,15.35500649]
[1674038305483,0.29836976,1575.9,1575.8,21.70098649]
[1674038305687,0.29836976,1575.9,1575.8,21.93098649]
[1674038305903,0.29836976,1575.9,1575.8,28.27696649]
[1674038306271,0.29836976,1575.9,1575.8,28.88167613]
[1674038307105,0.29836976,1575.9,1575.8,31.88167613]
[1674038312243,0.29836976,1575.9,1575.8,31.27696649]
[1674038312782,0.29836976,1575.9,1575.8,18.58500649]
[1674038314625,0.29836976,1575.9,1575.8,17.14100649]
[1674038314966,0.29836976,1575.9,1575.8,7.44840242]
[1674038315305,0.29836976,1575.9,1575.8,4.44840242]
[1674038315472,0.29836976,1575.9,1575.7,25.96647045]
[1674038315680,0.29836976,1575.9,1575.7,29.08309452]
[1674038319841,0.29836976,1575.9,1575.7,22.73472452]
[1674038319998,0.29836976,1575.9,1575.7,22.73672452]
[1674038320412,0.29836976,1575.9,1575.7,18.9718]
[1674038328011,0.29836976,1575.9,1575.8,4.11662407]
[1674038328237,0.29836976,1575.9,1575.8,10.46260407]
[1674038328431,0.29836976,1575.9,1575.8,10.52860407]
[1674038328625,0.29836976,1575.9,1575.8,9.52860407]
[1674038329926,0.29836976,1575.9,1575.8,13.64131648]
[1674038331814,0.29836976,1575.9,1575.8,19.98729648]
[1674038331989,0.29836976,1575.9,1575.8,20.21729648]
[1674038332412,0.29836976,1575.9,1575.8,20.21529648]
[1674038332756,0.29836976,1575.9,1575.8,20.21729648]
[1674038334004,0.29836976,1575.9,1575.8,20.28179658]
[1674038334235,0.29836976,1575.9,1575.8,23.21729648]
[1674038334558,0.29836976,1575.9,1575.8,24.72979893]
[1674038334715,0.29836976,1575.9,1575.8,24.66529648]
[1674038336349,0.29836976,1575.9,1575.8,24.72973558]
[1674038336878,0.29836976,1575.9,1575.8,24.66529648]
[1674038337228,0.29836976,1575.9,1575.8,24.72973674]
[1674038337438,0.29508298,1575.9,1575.8,32.20235923]
[1674038338102,0.29508298,1575.9,1575.8,31.53664408]
[1674038339545,0.29508298,1575.9,1575.8,32.20235923]
[1674038340190,8.97571103,1576.2,1575.8,32.20235923]
[1674038340403,8.97571103,1576.2,1575.9,23.70365999]
[1674038340637,8.97571103,1576.2,1576.0,3.11662407]
[1674038341148,0.93871103,1576.2,1576.0,3.11662407]
[1674038341488,0.87271103,1576.2,1576.0,3.11662407]
[1674038345781,0.20979507,1576.2,1576.0,3.11662407]
[1674038345960,0.20979507,1576.2,1576.1,0.31166241]
[1674038348840,0.20979507,1576.2,1576.0,3.18262407]
[1674038349053,7.21708103,1576.2,1576.0,3.11662407]
[1674038349267,7.28308103,1576.2,1576.0,3.11662407]
[1674038350490,7.28308103,1576.2,1575.9,22.4855]
[1674038350681,7.28308103,1576.2,1575.9,25.60212407]
[1674038352818,8.27742846,1576.2,1575.9,25.60212407]
[1674038353704,6.34517,1576.0,1575.9,0.066]
[1674038353906,14.4524942,1576.0,1575.6,11.0904]
[1674038354094,13.41925596,1576.0,1575.6,14.20702407]
[1674038354440,1.448,1575.9,1575.6,11.0904]
[1674038354669,6.34598,1575.8,1575.6,11.0904]
[1674038354804,6.41198,1575.8,1575.6,11.0904]
[1674038355473,6.41198,1575.8,1575.6,0.066]
[1674038355700,6.41198,1575.8,1575.5,8.42295651]
[1674038355955,6.41198,1575.8,1575.5,14.84534229]
[1674038356275,0.066,1575.8,1575.5,21.19249229]
[1674038356493,0.066,1575.9,1575.6,4.03314549]
[1674038356753,8.93701596,1576.0,1575.7,3.11662407]
[1674038356929,8.2741,1576.0,1575.7,3.11662407]
[1674038357923,8.2741,1576.0,1575.7,9.46299407]
[1674038358065,8.2741,1576.0,1575.7,11.88049114]
[1674038358274,8.2741,1576.0,1575.7,12.504583]
[1674038358487,8.2741,1576.0,1575.8,3.11662407]
[1674038359153,0.066,1576.0,1575.8,3.11662407]
[1674038359364,0.66291596,1576.1,1575.8,3.11662407]
[1674038359544,1.69635447,1576.1,1575.8,6.81310737]
[1674038359754,1.69635447,1576.1,1575.8,6.87910737]
[1674038360282,8.04113447,1576.1,1575.8,6.87910737]
[1674038360482,7.07369596,1576.1,1575.8,3.18262407]
[1674038360731,8.06804339,1576.1,1575.8,3.11662407]
[1674038360968,1.70968316,1576.0,1575.7,19.9264]
[1674038361173,6.34558,1575.9,1575.7,0.066]
[1674038361434,12.75716,1575.9,1575.6,3.0]
[1674038361657,13.42007596,1575.9,1575.6,6.11662407]
[1674038361876,13.42007596,1575.9,1575.6,6.18262407]
[1674038362394,13.42007596,1575.9,1575.6,3.18013834]
[1674038362612,13.42007596,1575.9,1575.6,3.11413834]
[1674038363031,13.42007596,1575.9,1575.5,19.9264]
[1674038363242,13.42007596,1575.9,1575.5,23.04302407]
[1674038363697,21.21365596,1575.9,1575.5,23.04302407]
[1674038363849,12.6923,1575.8,1575.5,23.04302407]
[1674038364067,12.7583,1575.8,1575.5,23.04302407]
[1674038364521,13.42121596,1575.8,1575.5,23.04302407]
[1674038365149,13.42121596,1575.8,1575.5,14.95012407]
[1674038365368,1.69559616,1575.7,1575.5,0.066]
[1674038365532,13.90911962,1575.6,1575.4,0.24950547]
[1674038365756,15.42311962,1575.6,1575.4,0.24950547]
[1674038365971,21.76989962,1575.6,1575.4,0.24950547]
[1674038368506,21.78328948,1575.6,1575.4,0.24950547]
[1674038369632,20.33528948,1575.6,1575.4,0.24950547]
[1674038383457,20.33528948,1575.6,1575.4,0.24624628]
[1674038385393,20.16572986,1575.6,1575.4,0.24624628]
[1674038387890,19.11972986,1575.6,1575.4,0.24624628]
[1674038394926,20.55372986,1575.6,1575.4,0.24624628]
[1674038397316,21.21664582,1575.6,1575.4,0.24624628]
[1674038399766,22.21099325,1575.6,1575.4,0.24624628]
[1674038400130,21.21664582,1575.6,1575.4,0.24624628]
[1674038400582,22.21099325,1575.6,1575.4,0.24624628]
[1674038400797,22.18491848,1575.5,1575.4,0.24624628]
[1674038400993,23.24526591,1575.5,1575.4,0.24624628]
[1674038401411,22.58234995,1575.5,1575.4,0.24624628]
[1674038401604,24.42978125,1575.5,1575.4,0.24624628]
[1674038402014,23.43543382,1575.5,1575.4,0.24624628]
[1674038402609,22.25156449,1575.5,1575.4,0.24624628]
[1674038402988,19.10757,1575.5,1575.4,0.24624628]
[1674038403405,20.80446862,1575.5,1575.4,0.24624628]
[1674038405103,21.99109096,1575.5,1575.4,0.24624628]
[1674038407305,20.80446862,1575.5,1575.4,0.24624628]
[1674038407854,21.99096879,1575.5,1575.4,0.24624628]
[1674038408271,22.98531622,1575.5,1575.4,0.24624628]
[1674038408860,22.32175425,1575.5,1575.4,0.24624628]
[1674038410037,22.98543402,1575.5,1575.4,0.24624628]
[1674038411105,22.32175425,1575.5,1575.4,0.24418321]
[1674038411845,23.76975425,1575.5,1575.4,0.24418321]
[1674038414662,24.43317875,1575.5,1575.4,0.24418321]
[1674038415788,22.98517875,1575.5,1575.4,0.24418321]
[1674038416984,21.99083132,1575.5,1575.4,0.24418321]
[1674038417203,22.98517875,1575.5,1575.4,0.24418321]
[1674038417375,21.99083132,1575.5,1575.4,0.24418321]
[1674038420467,22.98517875,1575.5,1575.4,0.24418321]
[1674038421180,21.99083132,1575.5,1575.4,0.24418321]
[1674038421366,27.54880282,1575.5,1575.4,0.24418321]
[1674038421589,32.37144951,1575.5,1575.4,0.24418321]
[1674038421810,31.04565294,1575.5,1575.4,0.24418321]
[1674038422141,32.37223054,1575.5,1575.4,0.24418321]
[1674038422295,28.87485421,1575.5,1575.4,0.24418321]
[1674038422505,32.37257851,1575.5,1575.4,0.24418321]
[1674038422760,1.0,1575.4,1575.3,0.09738941]
[1674038423099,26.96022813,1575.4,1575.3,0.09738941]
[1674038423242,28.22611816,1575.4,1575.3,0.09738941]
[1674038424202,33.50290796,1575.4,1575.3,0.09738941]
[1674038424616,33.50258226,1575.4,1575.3,0.09738941]
[1674038424884,21.63296059,1575.3,1575.1,0.20507157]
[1674038425037,32.25573431,1575.2,1575.1,0.20507157]
[1674038425248,32.01145162,1575.2,1575.1,1.57e-06]
[1674038425512,33.33657174,1575.2,1575.1,1.57e-06]
[1674038425678,1.09044116,1575.1,1575.0,0.18421749]
[1674038425878,16.9209614,1575.1,1575.0,0.18421749]
[1674038426090,20.20284116,1575.1,1575.0,0.18421749]
[1674038427981,26.44696563,1575.1,1575.0,0.18421749]
[1674038428514,27.44081273,1575.1,1575.0,0.18421749]
[1674038428723,26.77822914,1575.1,1575.0,0.18421749]
[1674038429050,27.95178388,1575.1,1575.0,0.18421749]
[1674038429497,28.61365687,1575.1,1575.0,0.18421749]
[1674038429818,27.44010213,1575.1,1575.0,0.18421749]
[1674038430195,27.61980977,1575.1,1575.0,0.18421749]
[1674038430419,26.44625503,1575.1,1575.0,0.18421749]
[1674038431305,31.10334926,1575.1,1575.0,0.18421749]
[1674038431510,2.23,1575.0,1574.9,0.21926691]
[1674038431751,39.96873932,1575.0,1574.9,0.21926691]
[1674038432079,36.53959844,1575.0,1574.9,0.21926691]
[1674038432296,36.93343379,1575.0,1574.9,0.21926691]
[1674038432443,34.42980543,1575.0,1574.9,0.21926691]
[1674038432864,37.92459045,1575.0,1574.9,6.91e-06]
[1674038433196,37.92818722,1575.0,1574.9,6.91e-06]
[1674038433981,33.76883276,1575.0,1574.9,6.91e-06]
[1674038434600,34.42927771,1575.0,1574.9,6.91e-06]
[1674038436122,36.93614487,1575.0,1574.9,6.91e-06]
[1674038436435,0.01338986,1574.9,1574.7,0.18902277]
[1674038436586,29.96366407,1574.8,1574.7,0.18902277]
[1674038436778,30.02966407,1574.8,1574.7,0.18902277]
[1674038437973,30.25966407,1574.8,1574.7,0.18902277]
[1674038438123,33.25966407,1574.8,1574.7,0.18902277]
[1674038438332,0.26999147,1574.6,1574.5,0.20908149]
[1674038438654,30.23085554,1574.6,1574.5,0.20908149]
[1674038438857,30.29685554,1574.6,1574.5,0.20908149]
[1674038445003,43.69023024,1574.6,1574.5,1.49e-06]
[1674038445219,1.0,1574.5,1574.2,0.00908298]
[1674038445393,25.40808,1574.3,1574.2,0.00908298]
[1674038445598,28.59070407,1574.3,1574.2,0.00908298]
[1674038446224,30.03770407,1574.3,1574.2,0.00908298]
[1674038446495,19.12206,1574.3,1574.2,0.00908298]
[1674038446709,19.12206,1574.3,1574.2,1.10208298]
[1674038446710,12.77004,1574.3,1574.2,1.10208298]
[1674038446860,12.77004,1574.3,1574.2,1.23465413]
[1674038447616,6.41802,1574.3,1574.2,1.23465413]
[1674038448328,0.066,1574.3,1574.2,2.68265413]
[1674038448541,6.41731,1574.5,1574.2,2.68265413]
[1674038448764,6.41731,1574.5,1574.3,0.26826541]
[1674038448978,6.41731,1574.5,1574.2,1.14165413]
[1674038450503,0.066,1574.5,1574.2,2.58965413]
[1674038450725,0.066,1574.7,1574.4,1.0]
[1674038450891,12.70059,1574.8,1574.4,1.0]
[1674038450892,12.76659,1574.8,1574.4,1.0]
[1674038451082,6.41629,1574.8,1574.5,0.1]
[1674038452553,12.76658,1574.8,1574.5,0.1]
[1674038452820,12.76658,1574.8,1574.3,29.94208]
[1674038453954,19.11687,1574.8,1574.3,29.94208]
[1674038455011,19.11687,1574.8,1574.4,1.448]
[1674038455364,19.11687,1574.8,1574.3,22.1423]
[1674038458337,6.41629,1574.8,1574.4,1.439]
[1674038458548,6.41629,1574.8,1574.5,1.1439]
[1674038459405,6.41629,1574.8,1574.5,0.1439]
[1674038461225,6.41629,1574.8,1574.5,1.1439]
[1674038461672,6.41629,1574.8,1574.5,0.1439]
[1674038466373,6.41629,1574.8,1574.4,2.12709186]
[1674038466588,19.77640549,1574.8,1574.3,20.5903]
[1674038466739,14.41825263,1574.8,1574.3,20.5903]
[1674038466949,13.42611549,1574.8,1574.3,20.5903]
[1674038467215,13.42611549,1574.8,1574.3,19.1423]
[1674038467388,19.77612549,1574.8,1574.3,19.1423]
[1674038468374,20.76826263,1574.8,1574.3,19.1423]
[1674038469119,12.70178,1574.6,1574.3,19.1423]
[1674038469263,12.76778,1574.6,1574.3,11.5834]
[1674038469475,19.11867,1574.6,1574.3,11.5834]
[1674038470001,19.11867,1574.6,1574.3,11.58091908]
[1674038470680,12.76778,1574.6,1574.3,11.58091908]
[1674038470889,6.41689,1574.6,1574.3,11.58091908]
[1674038471798,0.066,1574.6,1574.3,11.58091908]
[1674038471998,12.78046986,1574.7,1574.3,14.21374767]
[1674038473126,19.79121535,1574.7,1574.3,11.58091908]
[1674038473483,20.96473156,1574.7,1574.3,11.58091908]
[1674038475220,20.96473156,1574.7,1574.3,11.58091908]
[1674038477293,19.79121535,1574.7,1574.3,11.58091908]
[1674038479303,20.96453417,1574.7,1574.3,11.58091908]
[1674038479707,25.07329538,1574.7,1574.3,11.58091908]
[1674038480274,19.05366,1574.5,1574.3,11.58091908]
[1674038480483,19.11966,1574.5,1574.3,11.58091908]
[1674038481714,12.76844,1574.5,1574.3,11.58091908]
[1674038482856,0.066,1574.5,1574.3,11.58091908]
[1674038483069,6.41702,1574.6,1574.3,11.58091908]
[1674038483397,6.41702,1574.6,1574.3,12.88471929]
[1674038484682,0.066,1574.6,1574.4,1.448]
[1674038484897,14.32441,1574.8,1574.4,7.79942]
[1674038485216,7.9744,1574.8,1574.5,1.448]
[1674038485368,7.9744,1574.8,1574.5,3.55204366]
[1674038485845,7.9744,1574.8,1574.5,9.90324366]
[1674038486015,7.9744,1574.8,1574.5,9.96924366]
[1674038486016,0.066,1574.8,1574.5,9.96924366]
[1674038486226,13.42567549,1574.9,1574.5,9.96924366]
[1674038486939,13.42567549,1574.9,1574.6,1.438]
[1674038486940,0.066,1574.9,1574.6,1.438]
[1674038487319,0.066,1575.0,1574.7,6.49421]
[1674038487470,0.002,1575.0,1574.7,6.55821]
[1674038487678,14.48445763,1575.1,1574.7,6.56021]
[1674038488200,1.69700108,1575.0,1574.7,0.2098]
[1674038488418,8.04636108,1575.0,1574.7,0.1438]
[1674038488644,13.42481549,1575.0,1574.6,1.504]
[1674038488943,14.41695263,1575.0,1574.6,4.438]
[1674038489291,14.41695263,1575.0,1574.5,17.60673366]
[1674038489505,1.69670124,1574.9,1574.5,17.60673366]
[1674038489840,8.04647124,1574.9,1574.5,17.60673366]
[1674038490041,7.07586549,1574.9,1574.5,17.60673366]
[1674038490256,6.41577,1574.9,1574.5,17.60673366]
[1674038490427,7.07586549,1574.9,1574.5,17.60673366]
[1674038490636,14.43116249,1574.9,1574.5,7.7078]
[1674038490851,0.66009549,1574.8,1574.5,7.7078]
[1674038491066,14.39685981,1574.8,1574.5,7.7078]
[1674038491426,12.76636,1574.8,1574.5,7.7078]
[1674038491572,12.76636,1574.8,1574.5,0.066]
[1674038491780,12.76636,1574.8,1574.5,3.0]
[1674038492028,12.76636,1574.8,1574.5,2.99752851]
[1674038492237,12.76636,1574.8,1574.4,9.1874]
[1674038492562,19.77677549,1574.8,1574.4,9.1874]
[1674038493250,19.77677549,1574.8,1574.4,0.066]
[1674038493251,12.70162,1574.6,1574.4,0.066]
[1674038493461,12.70324,1574.4,1574.2,0.00908298]
[1674038493700,12.76924,1574.4,1574.2,0.00908298]
[1674038493907,19.12086,1574.4,1574.2,0.00908298]
[1674038494453,30.69719956,1574.4,1574.2,0.00908298]
[1674038494672,1.72405111,1574.3,1574.2,0.00908298]
[1674038494987,19.05606,1574.3,1574.2,0.00908298]
[1674038495177,19.12206,1574.3,1574.2,0.00908298]
[1674038498099,12.77004,1574.3,1574.2,0.00908298]
[1674038498310,12.50624,1574.3,1574.2,0.00908298]
[1674038500268,18.85826,1574.3,1574.2,0.00908298]
[1674038503524,12.50624,1574.3,1574.2,0.00908298]
[1674038503886,0.066,1574.3,1574.2,1.10208298]
[1674038504117,12.76944,1574.4,1574.2,1.10208298]
[1674038504320,12.76944,1574.4,1574.2,0.00908298]
[1674038504747,0.066,1574.4,1574.2,0.00908298]
[1674038504964,0.066,1574.5,1574.2,14.16167298]
[1674038505187,13.36112549,1574.7,1574.2,14.16167298]
[1674038505188,6.35086,1574.6,1574.3,1.4161673]
[1674038505398,6.41686,1574.6,1574.3,1.4161673]
[1674038506633,6.41686,1574.6,1574.3,7.7680573]
[1674038506634,0.066,1574.6,1574.3,7.7680573]
[1674038506845,21.68421549,1574.8,1574.4,1.448]
[1674038507058,21.02412,1574.8,1574.4,1.448]
[1674038507300,14.67376,1574.8,1574.4,9.99815673]
[1674038507512,6.41636,1574.8,1574.4,10.06415673]
[1674038507919,12.76672,1574.8,1574.4,10.06415673]
[1674038508323,0.066,1574.8,1574.4,16.41577673]
[1674038508539,7.08936535,1574.9,1574.4,16.41577673]
[1674038508737,7.08936535,1574.9,1574.5,3.08957767]
[1674038509106,13.43932535,1574.9,1574.5,3.08957767]
[1674038509470,12.77922986,1574.9,1574.5,3.08957767]
[1674038509681,13.43932535,1574.9,1574.5,3.08957767]
[1674038510099,13.43932535,1574.9,1574.8,1.445]
[1674038510100,0.066,1574.9,1574.8,1.445]
[1674038510305,7.14322049,1575.1,1574.8,1.5895]
[1674038510783,6.483125,1575.1,1574.8,1.5895]
[1674038510996,6.483125,1575.1,1574.7,1.51]
[1674038510997,14.48443763,1575.1,1574.7,1.51]
[1674038511163,13.49230049,1575.1,1574.7,1.444]
[1674038511590,14.69954446,1575.1,1574.7,1.444]
[1674038513677,14.69954446,1575.1,1574.6,7.86255]
[1674038514964,13.49230049,1575.1,1574.6,7.86255]
[1674038515147,13.49230049,1575.1,1574.7,0.786255]
[1674038517191,12.832205,1575.1,1574.7,0.786255]
[1674038518437,12.832205,1575.1,1574.7,7.136655]
[1674038518614,6.483125,1575.1,1574.7,7.202655]
[1674038519723,12.831925,1575.1,1574.7,7.202655]
[1674038520082,12.831925,1575.1,1574.7,0.852255]
[1674038520297,12.831925,1575.1,1574.7,0.78325522]
[1674038520538,6.482845,1575.1,1574.6,39.67376]
[1674038521981,12.831645,1575.1,1574.6,33.32295]
[1674038522198,22.95716456,1575.1,1574.6,19.1758]
[1674038522425,22.95716456,1575.1,1574.6,0.066]
[1674038522426,4.55962407,1575.0,1574.6,0.066]
[1674038522633,4.55962407,1575.0,1574.4,11.916]
[1674038522634,23.60669407,1574.9,1574.4,11.916]
[1674038522830,29.03617723,1574.9,1574.4,11.916]
[1674038523051,25.53877046,1574.9,1574.4,11.916]
[1674038523256,3.13001393,1574.8,1574.4,0.066]
[1674038523471,3.13001393,1574.8,1574.2,0.00908298]
[1674038523472,19.05147,1574.7,1574.2,0.00908298]
[1674038523766,22.23409407,1574.7,1574.2,0.00908298]
[1674038523978,22.24748393,1574.7,1574.2,0.00908298]
[1674038525339,19.13085986,1574.7,1574.2,0.00908298]
[1674038525557,6.42987986,1574.7,1574.2,9.99234413]
[1674038525888,6.42987986,1574.7,1574.2,10.05834413]
[1674038526287,6.42761434,1574.7,1574.2,16.41077413]
[1674038527091,6.42761434,1574.7,1574.2,25.8798282]
[1674038527276,6.42761434,1574.7,1574.3,1.441]
[1674038527459,0.066,1574.7,1574.4,0.1441]
[1674038527667,14.44343,1574.9,1574.6,1.446]
[1674038527943,0.066,1574.9,1574.6,14.14762]
[1674038528088,7.07698049,1575.1,1574.6,14.21362]
[1674038528089,12.831925,1575.1,1574.6,14.21362]
[1674038528282,12.831925,1575.1,1574.7,1.421362]
[1674038528975,6.482885,1575.1,1574.7,7.771602]
[1674038529121,6.482885,1575.1,1574.7,7.837602]
[1674038529794,19.180725,1575.1,1574.7,1.487362]
[1674038530002,19.84082049,1575.1,1574.6,7.86281]
[1674038531022,7.14294049,1575.1,1574.6,7.86281]
[1674038531232,7.14294049,1575.1,1574.6,14.21362]
[1674038532951,6.482845,1575.1,1574.6,14.21362]
[1674038534557,7.14294049,1575.1,1574.6,14.21362]
[1674038534698,12.831885,1575.1,1574.7,1.421362]
[1674038536850,0.134045,1575.1,1574.7,15.567942]
[1674038537065,0.068045,1575.1,1574.7,15.633942]
[1674038537918,0.068045,1575.1,1574.7,21.984352]
[1674038538074,0.068045,1575.1,1574.8,8.5483852]
[1674038538282,0.068045,1575.1,1574.8,8.6143852]
[1674038542517,13.41343655,1575.2,1574.8,8.6143852]
[1674038543550,14.40557369,1575.2,1574.8,8.6143852]
[1674038544186,1.7243089,1575.1,1574.8,8.6143852]
[1674038544393,1.7243089,1575.1,1574.9,0.86143852]
[1674038544690,8.08022249,1575.2,1574.8,6.41595]
[1674038545163,1.72423464,1575.1,1574.8,6.41595]
[1674038545317,1.72423464,1575.1,1574.8,0.066]
[1674038545690,1.72423464,1575.1,1574.7,15.633732]
[1674038545909,1.72423464,1575.1,1574.8,1.5633732]
[1674038548860,1.72423464,1575.1,1574.7,21.983912]
[1674038548998,1.72423464,1575.1,1574.7,0.066]
[1674038549215,15.41400178,1575.1,1574.6,7.86479]
[1674038549533,8.07370929,1575.0,1574.6,7.86479]
[1674038549823,7.07535549,1575.0,1574.6,7.86479]
[1674038550193,7.07535549,1575.0,1574.6,6.41679]
[1674038550445,7.07535549,1575.0,1574.6,8.20939219]
[1674038552076,6.41526,1575.0,1574.6,8.20939219]
[1674038553687,6.41526,1575.0,1574.6,9.65039219]
[1674038554084,0.066,1575.0,1574.6,16.00120219]
[1674038554294,13.42372549,1575.1,1574.6,16.00120219]
[1674038554549,13.42372549,1575.1,1574.7,1.60012022]
[1674038556448,13.42372549,1575.1,1574.8,1.448]
[1674038556449,0.066,1575.1,1574.8,1.448]
[1674038556608,15.23062549,1575.3,1574.9,6.3496]
[1674038556812,15.23062549,1575.3,1574.9,7.8536]
[1674038556813,17.43174337,1575.3,1574.9,7.8536]
[1674038557026,16.43960623,1575.3,1575.0,0.78536]
[1674038557286,8.88229549,1575.3,1575.0,7.13449]
[1674038557495,8.88229549,1575.3,1575.0,7.20049]
[1674038557906,1.71823263,1575.3,1575.0,7.20049]
[1674038558131,1.65223263,1575.3,1575.0,7.20049]
[1674038558410,2.71658339,1575.3,1575.0,7.20049]
[1674038559258,1.72444625,1575.3,1575.0,7.20049]
[1674038559472,0.66009549,1575.3,1575.0,7.20049]
[1674038559846,1.72438558,1575.3,1575.0,0.85136]
[1674038560031,1.72438558,1575.3,1575.0,0.78536]
[1674038561438,1.68558558,1575.3,1575.0,0.78536]
[1674038563563,1.68558558,1575.3,1575.1,0.078536]
[1674038564610,2.67772272,1575.3,1575.1,0.078536]
[1674038565174,0.62129549,1575.3,1575.1,6.427326]
[1674038565390,0.62129549,1575.3,1575.1,6.493326]
[1674038565751,1.68503047,1575.3,1575.1,6.493326]
[1674038566399,1.18990688,1575.4,1575.1,6.493326]
[1674038566748,0.19776974,1575.4,1575.2,6.9974526]
[1674038566923,0.19776974,1575.4,1575.2,7.0634526]
[1674038569539,0.19776974,1575.4,1575.2,0.7153326]
[1674038569746,0.19776974,1575.4,1575.1,21.39625007]
[1674038570721,2.25315777,1575.4,1575.1,21.39625007]
[1674038570941,1.18990688,1575.4,1575.1,21.39625007]
[1674038571110,0.19776974,1575.4,1575.1,21.39625007]
[1674038571642,1.92322685,1575.4,1575.1,21.39625007]
[1674038571852,0.85995872,1575.4,1575.1,21.39625007]
[1674038572072,0.85995872,1575.4,1575.2,2.13962501]
[1674038573264,0.19776974,1575.4,1575.2,2.13962501]
[1674038574632,0.19776974,1575.4,1575.2,8.48799501]
[1674038574804,0.19776974,1575.4,1575.2,8.55399501]
[1674038582419,0.19776974,1575.4,1575.2,14.90239501]
[1674038582648,0.19776974,1575.4,1575.3,1.4902395]
[1674038582955,0.19776974,1575.4,1575.3,6.34799]
[1674038583164,0.19776974,1575.4,1575.3,6.41399]
[1674038583476,0.1943,1575.4,1575.3,6.41399]
[1674038589539,0.1943,1575.4,1575.3,12.76198]
[1674038590029,0.1691,1575.4,1575.3,12.76198]
[1674038590201,0.1691,1575.4,1575.3,15.0313775]
[1674038592790,0.1691,1575.4,1575.3,21.3793675]
[1674038593832,0.1691,1575.4,1575.3,24.49599157]
[1674038595449,0.1691,1575.4,1575.3,18.14800157]
[1674038599615,0.1691,1575.4,1575.3,24.49599157]
[1674038600392,0.1691,1575.4,1575.3,21.3793675]
[1674038600565,0.1691,1575.4,1575.3,0.066]
[1674038600768,0.1691,1575.4,1575.2,14.90181501]
[1674038600995,0.1691,1575.4,1575.2,8.55363501]
[1674038601230,0.1691,1575.4,1575.2,6.41401]
[1674038601836,0.1691,1575.4,1575.2,0.066]
[1674038602030,6.53017986,1575.4,1575.1,11.8523]
[1674038602240,0.24848986,1575.4,1575.1,11.8523]
[1674038602485,0.24848986,1575.4,1575.1,18.20106]
[1674038602486,0.18248986,1575.4,1575.1,18.20106]
[1674038605194,0.18448986,1575.4,1575.1,18.19906]
[1674038605362,0.18248986,1575.4,1575.1,18.20106]
[1674038605730,13.53985884,1575.4,1575.1,11.8523]
[1674038605940,1.447,1575.3,1575.1,11.8523]
[1674038606196,14.1435,1575.3,1575.1,11.8523]
[1674038606374,14.2095,1575.3,1575.1,11.8523]
[1674038606731,20.55789,1575.3,1575.1,0.066]
[1674038606884,20.55789,1575.3,1574.8,25.638]
[1674038607098,20.55789,1575.3,1574.8,26.07393818]
[1674038608285,20.55789,1575.3,1574.8,25.638]
[1674038609455,21.22007898,1575.3,1574.8,25.638]
[1674038609670,20.55789,1575.3,1574.8,25.638]
[1674038609826,1.448,1575.1,1574.8,11.2189]
[1674038610037,1.448,1575.1,1574.8,0.066]
[1674038610245,1.448,1575.1,1574.7,7.7364]
[1674038610246,0.1448,1575.0,1574.7,7.8024]
[1674038610730,6.49403,1575.0,1574.7,7.8024]